[Event "*** Titled Tuesday Blitz"]
[Site "Chess.com"]
[Date "2020.03.03"]
[Round "7"]
[White "Noam_Vitenberg"]
[Black "Shant_Sargsyan"]
[Result "0-1"]
[WhiteElo "2434"]
[BlackElo "2999"]
[TimeControl "180+1"]
[EndTime "10:10:59 PST"]
[Termination "Shant_Sargsyan won on time"]

1. Nf3 {[%clk 0:02:35]} 1... d5 {[%clk 0:02:58.8]} 2. c4 {[%clk 0:02:34.2]} 2...
d4 {[%clk 0:02:58.9]} 3. b4 {[%clk 0:02:33.6]} 3... f6 {[%clk 0:02:58.8]} 4. e3
{[%clk 0:02:22.5]} 4... e5 {[%clk 0:02:58.4]} 5. c5 {[%clk 0:02:22.6]} 5... a5
{[%clk 0:02:57]} 6. Qa4+ {[%clk 0:02:19.4]} 6... Nd7 {[%clk 0:02:53.4]} 7. exd4
{[%clk 0:02:01.1]} 7... exd4 {[%clk 0:02:53.6]} 8. Nxd4 {[%clk 0:02:02]} 8...
Qe7+ {[%clk 0:02:53]} 9. Be2 {[%clk 0:01:58.2]} 9... Qe4 {[%clk 0:02:52.3]} 10.
Bb2 {[%clk 0:01:41.3]} 10... Qxg2 {[%clk 0:02:52.3]} 11. Bf3 {[%clk 0:01:40.7]}
11... Qh3 {[%clk 0:02:52.7]} 12. Nc3 {[%clk 0:01:26]} 12... c6 {[%clk
0:02:52.8]} 13. O-O-O {[%clk 0:01:16.6]} 13... Ne5 {[%clk 0:02:53.2]} 14. Be4
{[%clk 0:01:06.5]} 14... Nd3+ {[%clk 0:02:49.4]} 15. Bxd3 {[%clk 0:01:04.2]}
15... Qxd3 {[%clk 0:02:50.3]} 16. Rde1+ {[%clk 0:00:54.7]} 16... Ne7 {[%clk
0:02:49.6]} 17. Ne6 {[%clk 0:00:37.6]} 17... Bxe6 {[%clk 0:02:49.3]} 18. Rxe6
{[%clk 0:00:36.9]} 18... Qc4 {[%clk 0:02:47.7]} 19. Rhe1 {[%clk 0:00:35.4]}
19... Kf7 {[%clk 0:02:48]} 20. bxa5 {[%clk 0:00:19.7]} 20... Qxa4 {[%clk
0:02:45.9]} 21. Nxa4 {[%clk 0:00:20.6]} 21... Rxa5 {[%clk 0:02:46.8]} 22. Nb6
{[%clk 0:00:20]} 22... Rxc5+ {[%clk 0:02:45.8]} 23. Bc3 {[%clk 0:00:20.4]} 23...
Nd5 {[%clk 0:02:43.7]} 24. Nd7 {[%clk 0:00:19.6]} 24... Rb5 {[%clk 0:02:38.1]}
25. Kc2 {[%clk 0:00:13.9]} 25... Ba3 {[%clk 0:02:31.7]} 26. d4 {[%clk
0:00:04.5]} 26... Rd8 {[%clk 0:02:30.2]} 27. Nc5 {[%clk 0:00:03]} 27... Bxc5
{[%clk 0:02:30.4]} 28. dxc5 {[%clk 0:00:02.4]} 28... Rxc5 {[%clk 0:02:31.3]} 0-1

[Event "*** Titled Tuesday Blitz"]
[Site "Chess.com"]
[Date "2020.03.03"]
[Round "7"]
[White "Grandelicious"]
[Black "rasmussvane"]
[Result "0-1"]
[WhiteElo "2715"]
[BlackElo "2874"]
[TimeControl "180+1"]
[EndTime "10:11:03 PST"]
[Termination "rasmussvane won by resignation"]

1. Nf3 {[%clk 0:03:00.9]} 1... d5 {[%clk 0:02:59.1]} 2. g3 {[%clk 0:03:00.7]}
2... g6 {[%clk 0:02:59.3]} 3. Bg2 {[%clk 0:02:59.1]} 3... Bg7 {[%clk 0:02:59.5]}
4. O-O {[%clk 0:02:54.9]} 4... e5 {[%clk 0:02:59.1]} 5. d3 {[%clk 0:02:55.5]}
5... Nc6 {[%clk 0:02:58.8]} 6. Nbd2 {[%clk 0:02:53.1]} 6... Nge7 {[%clk
0:02:57]} 7. c4 {[%clk 0:02:48.9]} 7... O-O {[%clk 0:02:52.1]} 8. Rb1 {[%clk
0:02:48]} 8... a5 {[%clk 0:02:51.3]} 9. b3 {[%clk 0:02:48.4]} 9... Be6 {[%clk
0:02:50]} 10. Ng5 {[%clk 0:02:44.9]} 10... Bg4 {[%clk 0:02:49.2]} 11. h3 {[%clk
0:02:44.9]} 11... Bc8 {[%clk 0:02:49.3]} 12. a3 {[%clk 0:02:40]} 12... h6 {[%clk
0:02:44.9]} 13. Ngf3 {[%clk 0:02:39.9]} 13... Bf5 {[%clk 0:02:41.3]} 14. cxd5
{[%clk 0:02:35.4]} 14... Nxd5 {[%clk 0:02:40.4]} 15. Bb2 {[%clk 0:02:33.7]}
15... Be6 {[%clk 0:02:35.8]} 16. Rc1 {[%clk 0:02:25.4]} 16... e4 {[%clk
0:02:18.8]} 17. dxe4 {[%clk 0:02:21.9]} 17... Bxb2 {[%clk 0:02:18.2]} 18. exd5
{[%clk 0:02:22.5]} 18... Bxd5 {[%clk 0:02:05.6]} 19. Rc2 {[%clk 0:02:00.8]}
19... Bxa3 {[%clk 0:02:05.5]} 20. Nc4 {[%clk 0:02:01.4]} 20... Bb4 {[%clk
0:02:03.5]} 21. Qc1 {[%clk 0:02:01]} 21... Be4 {[%clk 0:01:59.6]} 22. Qxh6
{[%clk 0:01:51.7]} 22... Bxf3 {[%clk 0:01:37.9]} 23. exf3 {[%clk 0:01:47.1]}
23... Nd4 {[%clk 0:01:27.1]} 24. Rb2 {[%clk 0:01:47.2]} 24... Bc3 {[%clk
0:00:57.8]} 25. Rbb1 {[%clk 0:01:46.9]} 25... b5 {[%clk 0:00:56]} 26. Ne3 {[%clk
0:01:46.9]} 26... a4 {[%clk 0:00:52.7]} 27. bxa4 {[%clk 0:01:42.6]} 27... bxa4
{[%clk 0:00:53.6]} 28. Rfc1 {[%clk 0:01:34.7]} 28... Ne2+ {[%clk 0:00:53]} 0-1

[Event "*** Titled Tuesday Blitz"]
[Site "Chess.com"]
[Date "2020.03.03"]
[Round "7"]
[White "Zarikovs1999"]
[Black "korbul"]
[Result "0-1"]
[WhiteElo "2347"]
[BlackElo "2538"]
[TimeControl "180+1"]
[EndTime "10:11:23 PST"]
[Termination "korbul won on time"]

1. e4 {[%clk 0:03:00.9]} 1... c5 {[%clk 0:02:59.7]} 2. Nf3 {[%clk 0:02:24.8]}
2... e6 {[%clk 0:02:59.2]} 3. d4 {[%clk 0:02:20.3]} 3... cxd4 {[%clk 0:02:58.9]}
4. Nxd4 {[%clk 0:02:21.2]} 4... Nf6 {[%clk 0:02:59.1]} 5. Nc3 {[%clk 0:02:20]}
5... d6 {[%clk 0:02:59.3]} 6. g3 {[%clk 0:02:19.7]} 6... a6 {[%clk 0:02:57.5]}
7. Bg2 {[%clk 0:02:19.2]} 7... Qc7 {[%clk 0:02:58.1]} 8. O-O {[%clk 0:02:18.8]}
8... Be7 {[%clk 0:02:58.7]} 9. Be3 {[%clk 0:02:15.5]} 9... O-O {[%clk
0:02:58.8]} 10. h3 {[%clk 0:02:15.3]} 10... Nc6 {[%clk 0:02:58.7]} 11. Nce2
{[%clk 0:02:02.3]} 11... Ne5 {[%clk 0:02:54.4]} 12. b3 {[%clk 0:02:01.2]} 12...
b5 {[%clk 0:02:54]} 13. f4 {[%clk 0:01:53.4]} 13... Ned7 {[%clk 0:02:53.6]} 14.
e5 {[%clk 0:01:49.9]} 14... dxe5 {[%clk 0:02:53.5]} 15. Bxa8 {[%clk 0:01:13.4]}
15... exd4 {[%clk 0:02:52.6]} 16. Bxd4 {[%clk 0:01:14.3]} 16... Nd5 {[%clk
0:02:52.1]} 17. Bxd5 {[%clk 0:01:12.8]} 17... exd5 {[%clk 0:02:51]} 18. Qd3
{[%clk 0:01:10.5]} 18... Nc5 {[%clk 0:02:50]} 19. Bxc5 {[%clk 0:01:04.5]} 19...
Bxc5+ {[%clk 0:02:40.9]} 20. Kh2 {[%clk 0:01:03.9]} 20... d4 {[%clk 0:02:41.2]}
21. Rad1 {[%clk 0:00:54.1]} 21... Rd8 {[%clk 0:02:37.1]} 22. c3 {[%clk
0:00:53.7]} 22... Qd7 {[%clk 0:02:27.2]} 23. g4 {[%clk 0:00:47.3]} 23... Bb7
{[%clk 0:02:20.7]} 24. Nxd4 {[%clk 0:00:45.2]} 24... h5 {[%clk 0:02:19]} 25. Qg3
{[%clk 0:00:28.6]} 25... hxg4 {[%clk 0:02:13.9]} 26. hxg4 {[%clk 0:00:25]} 26...
b4 {[%clk 0:02:13.4]} 27. Nf3 {[%clk 0:00:17.4]} 27... Qxd1 {[%clk 0:02:09.4]}
28. Rxd1 {[%clk 0:00:18.3]} 28... Rxd1 {[%clk 0:02:08.7]} 29. cxb4 {[%clk
0:00:19.2]} 29... Bxb4 {[%clk 0:02:04.3]} 30. Ng1 {[%clk 0:00:08]} 30... Bc5
{[%clk 0:02:00.7]} 0-1

[Event "*** Titled Tuesday Blitz"]
[Site "Chess.com"]
[Date "2020.03.03"]
[Round "7"]
[White "HarryCun"]
[Black "Redbandit87"]
[Result "1-0"]
[WhiteElo "2124"]
[BlackElo "2404"]
[TimeControl "180+1"]
[EndTime "10:11:28 PST"]
[Termination "HarryCun won by resignation"]

1. d4 {[%clk 0:03:00.9]} 1... d5 {[%clk 0:02:59.2]} 2. c4 {[%clk 0:03:01.8]}
2... e6 {[%clk 0:02:58.6]} 3. Nf3 {[%clk 0:03:02.7]} 3... Nf6 {[%clk 0:02:58.4]}
4. g3 {[%clk 0:03:02.5]} 4... Be7 {[%clk 0:02:54.6]} 5. Bg2 {[%clk 0:03:02.3]}
5... O-O {[%clk 0:02:55.5]} 6. O-O {[%clk 0:03:01.2]} 6... c6 {[%clk 0:02:55.9]}
7. Qc2 {[%clk 0:03:00.5]} 7... Ne4 {[%clk 0:02:53.4]} 8. Nbd2 {[%clk 0:02:59.5]}
8... f5 {[%clk 0:02:53.3]} 9. Ne5 {[%clk 0:02:59]} 9... Bf6 {[%clk 0:02:53]} 10.
f4 {[%clk 0:02:58.7]} 10... b6 {[%clk 0:02:48.7]} 11. b3 {[%clk 0:02:57.6]}
11... Bb7 {[%clk 0:02:48.8]} 12. Bb2 {[%clk 0:02:57.8]} 12... Nd7 {[%clk
0:02:48.2]} 13. e3 {[%clk 0:02:57.2]} 13... Rc8 {[%clk 0:02:38.7]} 14. Ndf3
{[%clk 0:02:56.1]} 14... h6 {[%clk 0:02:35]} 15. Nxd7 {[%clk 0:02:55.7]} 15...
Qxd7 {[%clk 0:02:34.8]} 16. Ne5 {[%clk 0:02:55.5]} 16... Bxe5 {[%clk 0:02:35.3]}
17. fxe5 {[%clk 0:02:56.4]} 17... c5 {[%clk 0:02:34.9]} 18. Bxe4 {[%clk
0:02:56.4]} 18... dxe4 {[%clk 0:02:34.5]} 19. Rad1 {[%clk 0:02:54.4]} 19... cxd4
{[%clk 0:02:30.1]} 20. Rxd4 {[%clk 0:02:53.8]} 20... Qe7 {[%clk 0:02:28.7]} 21.
Rfd1 {[%clk 0:02:51.9]} 21... Rfd8 {[%clk 0:02:27.5]} 22. Qd2 {[%clk 0:02:51.9]}
22... Rxd4 {[%clk 0:02:26.3]} 23. Qxd4 {[%clk 0:02:52.8]} 23... Kf8 {[%clk
0:02:20.7]} 24. Qd7 {[%clk 0:02:45]} 24... Re8 {[%clk 0:01:51.5]} 25. Qxe7+
{[%clk 0:02:36.3]} 25... Rxe7 {[%clk 0:01:51.1]} 26. Ba3 {[%clk 0:02:36]} 26...
Ke8 {[%clk 0:01:51.4]} 27. Bxe7 {[%clk 0:02:34.3]} 27... Kxe7 {[%clk 0:01:52.3]}
28. Rd6 {[%clk 0:02:34.4]} 28... g5 {[%clk 0:01:51]} 29. Kf2 {[%clk 0:02:32.4]}
29... h5 {[%clk 0:01:51.1]} 30. b4 {[%clk 0:02:32.7]} 30... Ba8 {[%clk
0:01:44.4]} 31. c5 {[%clk 0:02:31.7]} 31... bxc5 {[%clk 0:01:44.3]} 32. bxc5
{[%clk 0:02:32.6]} 32... Bd5 {[%clk 0:01:44.4]} 33. a4 {[%clk 0:02:31.7]} 33...
a5 {[%clk 0:01:37.8]} 34. Ra6 {[%clk 0:02:30.2]} 34... Kd7 {[%clk 0:01:38.3]}
35. Rxa5 {[%clk 0:02:15.6]} 35... Kc6 {[%clk 0:01:37.5]} 36. Rb5 {[%clk
0:02:11.5]} 36... Bc4 {[%clk 0:01:36.3]} 37. Rb8 {[%clk 0:02:05.4]} 37... Kxc5
{[%clk 0:01:36.4]} 38. a5 {[%clk 0:02:05.7]} 38... Kd5 {[%clk 0:01:34.8]} 39.
Rb4 {[%clk 0:01:53.8]} 39... Bd3 {[%clk 0:01:20.8]} 40. Rd4+ {[%clk 0:01:53.1]}
40... Kc5 {[%clk 0:01:21.2]} 41. Rd6 {[%clk 0:01:46.4]} 41... Bc4 {[%clk
0:01:20.6]} 42. a6 {[%clk 0:01:46.3]} 42... Bd5 {[%clk 0:01:20.2]} 43. a7 {[%clk
0:01:46.1]} 43... Bb7 {[%clk 0:01:18.6]} 44. Rxe6 {[%clk 0:01:41.8]} 44... Kd5
{[%clk 0:01:18.9]} 45. Re7 {[%clk 0:01:39.9]} 45... Bc6 {[%clk 0:01:18.6]} 46.
Rc7 {[%clk 0:01:38.4]} 46... Ba8 {[%clk 0:01:18.2]} 47. Rc8 {[%clk 0:01:38.4]}
47... Bb7 {[%clk 0:01:18.7]} 48. a8=Q {[%clk 0:01:38.3]} 48... Bxa8 {[%clk
0:01:19.2]} 49. Rxa8 {[%clk 0:01:38.8]} 49... Kxe5 {[%clk 0:01:20.1]} 50. Ra5+
{[%clk 0:01:38.6]} 1-0

[Event "*** Titled Tuesday Blitz"]
[Site "Chess.com"]
[Date "2020.03.03"]
[Round "7"]
[White "Micki-taryan"]
[Black "vladislavkovalev"]
[Result "1-0"]
[WhiteElo "3018"]
[BlackElo "2895"]
[TimeControl "180+1"]
[EndTime "10:11:33 PST"]
[Termination "Micki-taryan won on time"]

1. d4 {[%clk 0:03:00.9]} 1... Nf6 {[%clk 0:03:00.1]} 2. Nf3 {[%clk 0:03:01.8]}
2... e6 {[%clk 0:03:00.1]} 3. c4 {[%clk 0:03:02]} 3... d5 {[%clk 0:03:00.5]} 4.
Nc3 {[%clk 0:03:02.5]} 4... Be7 {[%clk 0:03:00.8]} 5. Bg5 {[%clk 0:03:00.7]}
5... h6 {[%clk 0:03:00.6]} 6. Bxf6 {[%clk 0:03:01.1]} 6... Bxf6 {[%clk
0:03:00.5]} 7. e3 {[%clk 0:03:01.7]} 7... O-O {[%clk 0:03:00.3]} 8. Rc1 {[%clk
0:03:02.3]} 8... c6 {[%clk 0:02:59.7]} 9. Bd3 {[%clk 0:03:02.9]} 9... Nd7 {[%clk
0:02:56.7]} 10. O-O {[%clk 0:03:03.1]} 10... Re8 {[%clk 0:02:45.4]} 11. Qe2
{[%clk 0:02:55.5]} 11... a6 {[%clk 0:02:28.6]} 12. Rfd1 {[%clk 0:02:52.4]} 12...
Qe7 {[%clk 0:02:28.2]} 13. e4 {[%clk 0:02:49.6]} 13... dxc4 {[%clk 0:02:28]} 14.
Bxc4 {[%clk 0:02:50.5]} 14... e5 {[%clk 0:02:28.3]} 15. d5 {[%clk 0:02:51]}
15... Nb6 {[%clk 0:02:10.4]} 16. dxc6 {[%clk 0:02:50.7]} 16... bxc6 {[%clk
0:02:11.3]} 17. h3 {[%clk 0:02:49.1]} 17... a5 {[%clk 0:02:03.9]} 18. a3 {[%clk
0:02:43.2]} 18... Bg5 {[%clk 0:01:16.8]} 19. Rb1 {[%clk 0:02:31.5]} 19... Bf4
{[%clk 0:00:58.8]} 20. Ba2 {[%clk 0:02:23.5]} 20... Ba6 {[%clk 0:00:58]} 21. Qc2
{[%clk 0:02:23.4]} 21... h5 {[%clk 0:00:53.4]} 22. Ne2 {[%clk 0:02:19]} 22...
Bh6 {[%clk 0:00:41.3]} 23. Ng3 {[%clk 0:02:19.4]} 23... Rac8 {[%clk 0:00:16.8]}
24. Nf5 {[%clk 0:02:17.5]} 24... Qf8 {[%clk 0:00:11.5]} 25. Nd6 {[%clk
0:02:10.2]} 25... Rc7 {[%clk 0:00:09]} 26. Qc5 {[%clk 0:02:02.9]} 26... Nc8
{[%clk 0:00:05.9]} 27. Qxa5 {[%clk 0:01:58]} 27... Nxd6 {[%clk 0:00:04.1]} 28.
Qxc7 {[%clk 0:01:58.3]} 28... Nxe4 {[%clk 0:00:04.8]} 29. Qxc6 {[%clk
0:01:56.5]} 1-0

[Event "*** Titled Tuesday Blitz"]
[Site "Chess.com"]
[Date "2020.03.03"]
[Round "7"]
[White "FearNoEvil12"]
[Black "Sordis"]
[Result "1-0"]
[WhiteElo "1993"]
[BlackElo "2350"]
[TimeControl "180+1"]
[EndTime "10:11:57 PST"]
[Termination "FearNoEvil12 won by checkmate"]

1. e4 {[%clk 0:03:00.9]} 1... c6 {[%clk 0:02:58.7]} 2. d4 {[%clk 0:02:59.8]}
2... d5 {[%clk 0:02:57.7]} 3. Nc3 {[%clk 0:03:00.7]} 3... dxe4 {[%clk
0:02:56.9]} 4. Nxe4 {[%clk 0:03:01.6]} 4... Bf5 {[%clk 0:02:57.3]} 5. Ng3 {[%clk
0:03:02]} 5... Bg6 {[%clk 0:02:57.5]} 6. Bc4 {[%clk 0:03:02.3]} 6... e6 {[%clk
0:02:55.9]} 7. N1e2 {[%clk 0:03:02.5]} 7... Nf6 {[%clk 0:02:55.3]} 8. O-O {[%clk
0:03:01.5]} 8... Bd6 {[%clk 0:02:55.4]} 9. f4 {[%clk 0:03:00.7]} 9... Bf5 {[%clk
0:02:54.9]} 10. Nxf5 {[%clk 0:02:59.6]} 10... exf5 {[%clk 0:02:55.8]} 11. Ng3
{[%clk 0:02:58.5]} 11... g6 {[%clk 0:02:55.5]} 12. Re1+ {[%clk 0:02:57.4]} 12...
Kf8 {[%clk 0:02:56]} 13. b3 {[%clk 0:02:47.6]} 13... h5 {[%clk 0:02:54.1]} 14.
Bb2 {[%clk 0:02:46.4]} 14... Nbd7 {[%clk 0:02:53.5]} 15. d5 {[%clk 0:02:43]}
15... c5 {[%clk 0:02:44.7]} 16. Be5 {[%clk 0:02:37.3]} 16... h4 {[%clk 0:02:41]}
17. Bxd6+ {[%clk 0:02:34.3]} 17... Kg7 {[%clk 0:02:41.2]} 18. Nf1 {[%clk
0:02:29.9]} 18... Ne4 {[%clk 0:02:38.4]} 19. Be5+ {[%clk 0:02:28.1]} 19... f6
{[%clk 0:02:38.9]} 20. Bb2 {[%clk 0:02:25.4]} 20... a6 {[%clk 0:02:37.7]} 21. a4
{[%clk 0:02:21.8]} 21... Nb6 {[%clk 0:02:29.9]} 22. Nd2 {[%clk 0:02:21.2]} 22...
Nd6 {[%clk 0:02:24.1]} 23. Nf3 {[%clk 0:02:15.2]} 23... Nbxc4 {[%clk 0:02:21.1]}
24. bxc4 {[%clk 0:02:13.2]} 24... Nxc4 {[%clk 0:02:22]} 25. Bc3 {[%clk
0:02:09.4]} 25... h3 {[%clk 0:02:22.2]} 26. Ng5 {[%clk 0:02:04.1]} 26... Qd7
{[%clk 0:02:04.6]} 27. Qd3 {[%clk 0:01:55.5]} 27... Nd6 {[%clk 0:01:59.9]} 28.
g3 {[%clk 0:01:39.6]} 28... b5 {[%clk 0:01:51.7]} 29. Re6 {[%clk 0:01:37.7]}
29... Raf8 {[%clk 0:01:39.4]} 30. Rae1 {[%clk 0:01:37.8]} 30... Ne4 {[%clk
0:01:36.5]} 31. Nxe4 {[%clk 0:01:32.3]} 31... fxe4 {[%clk 0:01:37.4]} 32. Qxe4
{[%clk 0:01:32.1]} 32... Rf7 {[%clk 0:01:34.5]} 33. d6 {[%clk 0:01:21]} 33...
Rhf8 {[%clk 0:01:32.5]} 34. Qd5 {[%clk 0:01:16]} 34... b4 {[%clk 0:01:22.8]} 35.
Bb2 {[%clk 0:01:14.3]} 35... Qxa4 {[%clk 0:01:17.6]} 36. Rxf6 {[%clk 0:01:03.6]}
36... Rxf6 {[%clk 0:01:14.6]} 37. Re7+ {[%clk 0:01:02.6]} 37... Kh8 {[%clk
0:01:09.3]} 38. Qg5 {[%clk 0:00:59.5]} 38... Rf7 {[%clk 0:01:02.2]} 39. Bxf6+
{[%clk 0:00:49.9]} 39... Kg8 {[%clk 0:01:01.8]} 40. Qxg6+ {[%clk 0:00:46]} 40...
Rg7 {[%clk 0:00:59.5]} 41. Qxg7# {[%clk 0:00:45.1]} 1-0

[Event "*** Titled Tuesday Blitz"]
[Site "Chess.com"]
[Date "2020.03.03"]
[Round "7"]
[White "GadimbayliA"]
[Black "MiroVlasenko"]
[Result "1-0"]
[WhiteElo "2903"]
[BlackElo "2631"]
[TimeControl "180+1"]
[EndTime "10:11:58 PST"]
[Termination "GadimbayliA won by resignation"]

1. e4 {[%clk 0:02:41.6]} 1... Nc6 {[%clk 0:02:59.6]} 2. Nf3 {[%clk 0:02:39.9]}
2... d6 {[%clk 0:02:58.9]} 3. d4 {[%clk 0:02:39.7]} 3... Nf6 {[%clk 0:02:59]} 4.
Nc3 {[%clk 0:02:39.9]} 4... g6 {[%clk 0:02:59.4]} 5. Be2 {[%clk 0:02:40.1]} 5...
Bg7 {[%clk 0:02:59.8]} 6. O-O {[%clk 0:02:40.8]} 6... O-O {[%clk 0:03:00.2]} 7.
d5 {[%clk 0:02:41.4]} 7... Nb8 {[%clk 0:02:58.6]} 8. Re1 {[%clk 0:02:41.6]} 8...
c6 {[%clk 0:02:57.9]} 9. a4 {[%clk 0:02:42.1]} 9... Bg4 {[%clk 0:02:57.4]} 10.
Be3 {[%clk 0:02:40.5]} 10... Nbd7 {[%clk 0:02:54.3]} 11. a5 {[%clk 0:02:40.6]}
11... Bxf3 {[%clk 0:02:46]} 12. Bxf3 {[%clk 0:02:41.5]} 12... Qc7 {[%clk
0:02:44.7]} 13. Be2 {[%clk 0:02:00.8]} 13... cxd5 {[%clk 0:02:37.2]} 14. exd5
{[%clk 0:02:01.7]} 14... a6 {[%clk 0:02:37]} 15. Na4 {[%clk 0:01:59.1]} 15...
Rac8 {[%clk 0:02:24.6]} 16. c3 {[%clk 0:01:58.3]} 16... Rfe8 {[%clk 0:02:14.8]}
17. Qb3 {[%clk 0:01:56.2]} 17... Ne4 {[%clk 0:02:07.8]} 18. Nb6 {[%clk
0:01:49.7]} 18... Nec5 {[%clk 0:02:03.6]} 19. Qc2 {[%clk 0:01:34.7]} 19... Nxb6
{[%clk 0:01:55.9]} 20. axb6 {[%clk 0:01:35.6]} 20... Qd8 {[%clk 0:01:53.9]} 21.
Bg4 {[%clk 0:01:31.9]} 21... Nd7 {[%clk 0:01:48.3]} 22. Bh3 {[%clk 0:01:28.4]}
22... Rb8 {[%clk 0:01:23.1]} 23. Qb3 {[%clk 0:01:28.2]} 23... Nc5 {[%clk
0:01:21.2]} 24. Qc4 {[%clk 0:01:22.2]} 24... h5 {[%clk 0:01:14.6]} 25. f4 {[%clk
0:01:04.6]} 25... f5 {[%clk 0:01:10.4]} 26. Bxc5 {[%clk 0:00:55.8]} 26... dxc5
{[%clk 0:01:05.7]} 27. Re6 {[%clk 0:00:55.5]} 27... Kh7 {[%clk 0:00:59.5]} 28.
Rae1 {[%clk 0:00:55.9]} 28... Qd7 {[%clk 0:00:49.3]} 29. Qd3 {[%clk 0:00:55]}
29... Bf6 {[%clk 0:00:43.4]} 30. Bxf5 {[%clk 0:00:47.4]} 1-0

[Event "*** Titled Tuesday Blitz"]
[Site "Chess.com"]
[Date "2020.03.03"]
[Round "7"]
[White "GelmanAlexander"]
[Black "AniJak"]
[Result "0-1"]
[WhiteElo "2444"]
[BlackElo "2194"]
[TimeControl "180+1"]
[EndTime "10:12:12 PST"]
[Termination "AniJak won on time"]

1. e4 {[%clk 0:03:00.9]} 1... c6 {[%clk 0:02:58.6]} 2. Ne2 {[%clk 0:03:00.1]}
2... d5 {[%clk 0:02:58.1]} 3. e5 {[%clk 0:03:00.3]} 3... Bf5 {[%clk 0:02:50.9]}
4. Ng3 {[%clk 0:02:58.9]} 4... Bg6 {[%clk 0:02:49.7]} 5. h4 {[%clk 0:02:56.9]}
5... h6 {[%clk 0:02:49.5]} 6. h5 {[%clk 0:02:56.8]} 6... Bh7 {[%clk 0:02:48.9]}
7. e6 {[%clk 0:02:56.9]} 7... fxe6 {[%clk 0:02:47.3]} 8. d4 {[%clk 0:02:57.1]}
8... Nd7 {[%clk 0:02:43.2]} 9. f4 {[%clk 0:02:45.2]} 9... Ngf6 {[%clk
0:02:40.8]} 10. Bd3 {[%clk 0:02:45.4]} 10... c5 {[%clk 0:02:37.4]} 11. Bxh7
{[%clk 0:02:42.7]} 11... Rxh7 {[%clk 0:02:29.4]} 12. Qd3 {[%clk 0:02:42.9]}
12... Qa5+ {[%clk 0:02:20.7]} 13. Bd2 {[%clk 0:02:36.8]} 13... Qb6 {[%clk
0:02:20.4]} 14. Qg6+ {[%clk 0:02:32.5]} 14... Kd8 {[%clk 0:02:20.4]} 15. Nc3
{[%clk 0:01:13]} 15... cxd4 {[%clk 0:02:14.5]} 16. Na4 {[%clk 0:01:08.2]} 16...
Qc6 {[%clk 0:02:13.6]} 17. b3 {[%clk 0:01:06.4]} 17... e5 {[%clk 0:02:04.3]} 18.
O-O {[%clk 0:00:46.9]} 18... e4 {[%clk 0:01:56.1]} 19. Rad1 {[%clk 0:00:44.2]}
19... Rh8 {[%clk 0:01:53.6]} 20. Bb4 {[%clk 0:00:30.3]} 20... Ne8 {[%clk
0:01:50.6]} 21. Rxd4 {[%clk 0:00:18.5]} 21... Qxg6 {[%clk 0:01:45.5]} 22. hxg6
{[%clk 0:00:19.4]} 22... e6 {[%clk 0:01:44.8]} 23. f5 {[%clk 0:00:18]} 23... e5
{[%clk 0:01:40.4]} 24. Bxf8 {[%clk 0:00:16.4]} 24... exd4 {[%clk 0:01:37.6]} 25.
Ba3 {[%clk 0:00:13.9]} 25... Nef6 {[%clk 0:01:34]} 26. Rd1 {[%clk 0:00:13.8]}
26... Rc8 {[%clk 0:01:27.9]} 27. Rxd4 {[%clk 0:00:07.8]} 27... b5 {[%clk
0:01:26.3]} 28. Nb2 {[%clk 0:00:04]} 28... Rxc2 {[%clk 0:01:25.8]} 29. Nd1
{[%clk 0:00:04.2]} 29... Rxa2 {[%clk 0:01:22.1]} 30. Bd6 {[%clk 0:00:04]} 30...
Ra6 {[%clk 0:01:17.2]} 31. Bb4 {[%clk 0:00:03.1]} 31... Ra1 {[%clk 0:01:16.1]}
32. Kf2 {[%clk 0:00:02.2]} 32... a5 {[%clk 0:01:15.7]} 0-1

[Event "*** Titled Tuesday Blitz"]
[Site "Chess.com"]
[Date "2020.03.03"]
[Round "7"]
[White "burbur555"]
[Black "Terao90"]
[Result "1-0"]
[WhiteElo "2590"]
[BlackElo "2410"]
[TimeControl "180+1"]
[EndTime "10:12:17 PST"]
[Termination "burbur555 won by resignation"]

1. c4 {[%clk 0:03:00.9]} 1... Nf6 {[%clk 0:02:59.6]} 2. g3 {[%clk 0:03:01.7]}
2... e6 {[%clk 0:02:59.5]} 3. Bg2 {[%clk 0:03:01.6]} 3... d5 {[%clk 0:02:59.4]}
4. Nf3 {[%clk 0:03:01]} 4... Be7 {[%clk 0:02:59.3]} 5. O-O {[%clk 0:03:00.3]}
5... O-O {[%clk 0:02:59.8]} 6. d4 {[%clk 0:03:00.1]} 6... dxc4 {[%clk
0:03:00.2]} 7. Qc2 {[%clk 0:02:59.9]} 7... a6 {[%clk 0:02:58.7]} 8. a4 {[%clk
0:03:00]} 8... Bd7 {[%clk 0:02:56]} 9. Nbd2 {[%clk 0:02:58.8]} 9... Bc6 {[%clk
0:02:49.4]} 10. Nxc4 {[%clk 0:02:58]} 10... Be4 {[%clk 0:02:48.9]} 11. Qd1
{[%clk 0:02:57.7]} 11... Nbd7 {[%clk 0:02:47.7]} 12. Ncd2 {[%clk 0:02:50.3]}
12... Bd5 {[%clk 0:02:45]} 13. Qc2 {[%clk 0:02:49.8]} 13... c5 {[%clk
0:02:44.8]} 14. e4 {[%clk 0:02:48.9]} 14... Bc6 {[%clk 0:02:45]} 15. Ne5 {[%clk
0:02:48.2]} 15... Nxe5 {[%clk 0:02:43.9]} 16. dxe5 {[%clk 0:02:47.8]} 16... Nd7
{[%clk 0:02:44]} 17. f4 {[%clk 0:02:46.5]} 17... b5 {[%clk 0:02:44.2]} 18. b3
{[%clk 0:02:42.2]} 18... Qb6 {[%clk 0:02:37.2]} 19. Kh1 {[%clk 0:02:41.5]} 19...
Rac8 {[%clk 0:02:37.3]} 20. Bb2 {[%clk 0:02:34.4]} 20... Rfd8 {[%clk 0:02:24]}
21. Bc3 {[%clk 0:02:33]} 21... c4 {[%clk 0:02:19.3]} 22. axb5 {[%clk 0:02:32.4]}
22... cxb3 {[%clk 0:02:14.7]} 23. Qxb3 {[%clk 0:02:31.8]} 23... Bxb5 {[%clk
0:02:13.6]} 24. Ba5 {[%clk 0:02:29.1]} 24... Qd4 {[%clk 0:01:58.7]} 25. Nf3
{[%clk 0:02:22]} 25... Qxe4 {[%clk 0:01:36]} 26. Rfe1 {[%clk 0:02:20.9]} 26...
Nc5 {[%clk 0:01:28.4]} 27. Qb2 {[%clk 0:01:55.4]} 27... Qg6 {[%clk 0:01:04.8]}
28. Bxd8 {[%clk 0:01:54.3]} 28... Nd3 {[%clk 0:01:04.2]} 29. Qd2 {[%clk
0:01:49.7]} 29... Rxd8 {[%clk 0:00:47]} 30. Red1 {[%clk 0:01:29.6]} 30... Bc5
{[%clk 0:00:42]} 31. Qc2 {[%clk 0:01:27.5]} 31... Bb6 {[%clk 0:00:28.6]} 32. Rd2
{[%clk 0:01:24.5]} 32... h6 {[%clk 0:00:14.4]} 33. Nh4 {[%clk 0:01:21.7]} 33...
Qh5 {[%clk 0:00:13.4]} 34. Be4 {[%clk 0:01:20.9]} 34... Nb4 {[%clk 0:00:06.4]}
35. Rxd8+ {[%clk 0:01:18.9]} 35... Bxd8 {[%clk 0:00:07.3]} 36. Qc8 {[%clk
0:01:15.4]} 1-0